bitfinex-derivatives/quotes_ETHF0:USTF0_20250530
["timestamp","ask_amount","ask_price","bid_price","bid_amount"]
[1748617498960,3.2078,2604.8,2604.3,5.46113]
[1748617499161,3.1078,2604.8,2604.3,4.6934]
[1748617499666,0.76769,2604.5,2604.3,5.46113]
[1748617499865,3.1078,2604.8,2604.3,0.6334]
[1748617500066,0.76769,2604.5,2604.3,1.40113]
[1748617500267,3.1078,2604.8,2604.3,0.6334]
[1748617500562,0.76767,2604.6,2604.3,1.40113]
[1748617500863,3.87542,2604.8,2604.5,0.76768]
[1748617501065,3.87542,2604.8,2604.6,0.6661]
[1748617501366,3.8754,2604.8,2604.6,0.6661]
[1748617501762,0.76762,2604.7,2604.6,0.6661]
[1748617503064,0.76755,2605.0,2604.6,0.6661]
[1748617503266,0.76758,2604.9,2604.6,0.6661]
[1748617503470,3.2078,2605.4,2604.6,4.7261]
[1748617503671,0.76748,2605.2,2605.0,0.76753]
[1748617503869,0.76746,2605.3,2605.0,0.76753]
[1748617504068,3.2078,2605.4,2604.9,0.76756]
[1748617504366,0.76749,2605.2,2604.9,1.42835]
[1748617504569,0.76751,2605.1,2604.9,0.76755]
[1748617504765,3.2078,2605.4,2604.8,3.2078]
[1748617504975,3.2078,2605.4,2604.9,0.76756]
[1748617505271,4.5535,2605.4,2604.9,4.06]
[1748617505462,0.76753,2605.1,2604.9,4.06]
[1748617505662,0.76754,2605.0,2604.9,4.06]
[1748617505863,1.91885,2605.0,2604.4,3.2078]
[1748617506067,0.76771,2604.4,2604.3,0.6685]
[1748617506272,0.76777,2604.2,2604.1,3.8686]
[1748617506568,0.76775,2604.3,2604.1,3.8686]
[1748617506871,0.76777,2604.2,2604.1,3.2078]
[1748617507060,2.72217,2604.2,2604.1,3.2078]
[1748617507262,0.76783,2604.0,2603.8,7.2678]
[1748617507766,2.6056,2604.2,2603.8,7.2678]
[1748617507969,0.6341,2604.2,2603.8,7.2678]
[1748617508165,5.97906,2604.8,2604.2,0.76776]
[1748617508166,0.76772,2604.4,2604.2,0.76776]
[1748617508367,0.76769,2604.5,2604.3,0.76772]
[1748617508574,0.6512,2604.7,2604.4,0.7677]
[1748617508872,1.41885,2604.7,2604.4,0.7677]
[1748617509073,0.76763,2604.7,2604.4,3.2078]
[1748617509269,0.01068589,2605.0,2604.4,3.2078]
[1748617509475,0.01068589,2605.0,2604.8,0.76757]
[1748617509774,0.01068589,2605.0,2604.9,0.76756]
[1748617509969,0.77823589,2605.0,2604.6,0.6273]
[1748617510176,0.76758,2604.9,2604.7,4.059]
[1748617510377,0.77824589,2605.0,2604.7,8.03441]
[1748617510569,0.76757,2604.9,2604.7,8.03441]
[1748617511181,0.01068589,2605.0,2604.7,3.2078]
[1748617511380,0.76762,2604.7,2604.6,0.6273]
[1748617511577,0.76765,2604.6,2604.5,4.6775]
[1748617511776,0.76765,2604.6,2604.5,0.6185]
[1748617511974,1.3487,2604.9,2604.5,0.6185]
[1748617512276,0.76764,2604.7,2604.5,1.38617]
[1748617512475,0.76761,2604.8,2604.5,0.6185]
[1748617512677,0.76762,2604.7,2604.6,1.239]
[1748617512879,0.76761,2604.8,2604.6,1.239]
[1748617513075,1.3487,2604.9,2604.6,1.239]
[1748617513375,0.76765,2604.6,2604.5,0.6185]
[1748617513574,0.76765,2604.7,2604.5,0.6185]
[1748617513777,0.76765,2604.7,2604.6,1.239]
[1748617513974,0.76765,2604.6,2604.4,7.2668]
[1748617514274,0.76765,2604.6,2604.4,8.0345]
[1748617514475,0.76765,2604.6,2604.5,1.239]
[1748617515575,0.76768,2604.5,2604.4,7.2668]
[1748617515873,0.76768,2604.5,2604.4,3.2078]
[1748617516275,3.80718,2604.7,2603.9,0.00576369]
[1748617516276,0.76783,2604.0,2603.9,0.00576369]
[1748617517375,0.6512,2604.1,2603.9,0.00576369]
[1748617517581,0.6323,2604.5,2604.0,3.2078]
[1748617517777,0.6323,2604.5,2604.2,0.76776]
[1748617517778,0.76771,2604.4,2604.2,0.76776]
[1748617518076,0.01068589,2605.0,2604.3,4.4967]
[1748617518382,0.01068589,2605.0,2604.8,0.76758]
[1748617518675,0.01068589,2605.0,2604.7,2.07192]
[1748617518876,0.76758,2604.9,2604.8,1.3043]
[1748617519278,0.77823589,2605.0,2604.8,1.3043]
[1748617519481,0.77823589,2605.0,2604.9,0.6317]
[1748617519881,0.77822589,2605.0,2604.9,1.936]
[1748617521885,0.76762,2604.7,2604.6,3.2078]
[1748617522083,1.919,2604.8,2604.1,3.97559]
[1748617522278,0.76777,2604.2,2604.1,3.2078]
[1748617523778,1.2164,2604.4,2604.1,3.2078]
[1748617523984,3.2078,2604.6,2604.1,3.2078]
[1748617524184,4.4242,2604.6,2604.2,1.2865]
[1748617524386,0.76774,2604.3,2604.2,1.2865]
[1748617524785,0.7678,2604.1,2604.0,0.616]
[1748617525385,3.24861,2604.4,2604.0,2.72101]
[1748617525578,0.7678,2604.1,2604.0,2.72102]
[1748617525779,0.76776,2604.3,2604.2,0.76776]
[1748617525987,0.7678,2604.1,2604.0,2.72101]
[1748617526284,0.7678,2604.2,2604.0,2.72101]
[1748617526481,0.7678,2604.1,2604.0,1.9532]
[1748617526682,1.91931,2604.4,2603.9,0.00576369]
[1748617526683,1.91938,2604.3,2603.9,0.00576369]
[1748617526986,0.76798,2603.5,2603.4,3.2078]
[1748617527784,0.76798,2603.5,2603.4,4.5312]
[1748617527982,0.00576369,2603.7,2603.4,5.29919]
[1748617528285,0.76798,2603.5,2603.4,4.5312]
[1748617528487,0.76797,2603.6,2603.4,5.29918]
[1748617528786,0.00576369,2603.7,2603.5,0.76798]
[1748617528987,0.76795,2603.6,2603.5,0.76798]
[1748617529187,0.00576369,2603.7,2603.4,3.2078]
[1748617529487,0.00576369,2603.7,2603.6,0.76795]
[1748617529684,0.00576369,2603.7,2603.6,4.82195]
[1748617529881,0.6304,2604.4,2603.6,9.82195]
[1748617530076,0.76774,2604.3,2604.2,0.76775]
[1748617530284,6.84355,2604.6,2604.1,4.82178]
[1748617530580,4.9244,2604.6,2604.2,3.2078]
[1748617530786,4.9244,2604.6,2604.5,3.97548]
[1748617530987,4.9244,2604.6,2604.5,8.02948]
[1748617531187,4.9244,2604.6,2604.5,13.02948]
[1748617531388,4.9244,2604.6,2604.5,8.02948]
[1748617531989,4.9244,2604.6,2604.5,13.02948]
[1748617533196,5.1163,2604.6,2604.5,8.02948]
[1748617533390,5.1163,2604.6,2604.5,13.02948]
[1748617535393,5.1163,2604.6,2604.5,8.02948]
[1748617537896,4.118,2604.6,2604.5,8.02948]
[1748617538104,0.76757,2604.9,2604.6,1.91909]
[1748617538292,0.01068589,2605.0,2604.9,0.76756]
[1748617538293,0.77823589,2605.0,2604.9,0.76756]
[1748617538491,0.77823589,2605.0,2604.9,4.82056]
[1748617538691,0.01068589,2605.0,2604.9,4.82056]
[1748617539098,0.7674,2605.5,2605.0,1.91883]
[1748617539298,0.76738,2605.5,2605.4,3.97518]
[1748617539497,0.76738,2605.6,2605.5,0.76737]
[1748617539798,0.76734,2605.7,2605.6,0.76732]
[1748617540000,1.8393,2605.9,2605.4,3.2078]
[1748617540200,0.76736,2605.6,2605.5,0.76735]
[1748617541201,0.76729,2605.8,2605.7,0.76732]
[1748617541395,0.76729,2605.9,2605.8,0.76728]
[1748617541908,0.76729,2605.9,2605.7,4.053]
[1748617541909,0.76726,2606.0,2605.9,0.76726]
[1748617542305,0.76727,2605.9,2605.8,0.76727]
[1748617542603,2.26239767,2606.6,2605.7,7.2608]
[1748617542801,0.76718,2606.2,2606.1,3.97499]
[1748617542997,0.76718,2606.2,2606.1,7.2608]
[1748617543389,0.76716,2606.3,2606.2,0.76717]
[1748617543591,0.34473767,2606.6,2606.2,1.3213]
[1748617543797,0.7671,2606.5,2606.2,1.3213]
[1748617543999,0.76713,2606.4,2606.3,0.76713]
[1748617544197,0.7671,2606.5,2606.3,2.08843]
[1748617544404,0.76711,2606.4,2606.3,2.08843]
[1748617544904,3.2078,2607.1,2606.3,2.08843]
[1748617544905,1.07723543,2607.1,2606.4,1.91775]
[1748617545198,2.6528,2607.6,2607.0,3.2078]
[1748617545401,0.7669,2607.1,2607.0,3.2078]
[1748617545712,1.91697,2607.5,2607.0,7.2608]
[1748617545898,0.76687,2607.2,2607.1,1.2714]
[1748617546503,0.76685,2607.3,2607.2,0.76687]
[1748617546797,0.76684,2607.4,2607.2,0.76687]
[1748617547001,5.12445,2608.0,2607.3,4.4792]
[1748617547202,2.56417,2607.9,2607.4,4.05775253]
[1748617547398,0.6475,2607.9,2607.5,1.2714]
[1748617547892,2.56423,2607.9,2607.4,0.00575253]
[1748617548095,0.76678,2607.5,2607.4,0.00575253]
[1748617548500,0.76678,2607.5,2607.4,1.27715253]
[1748617550002,0.6475,2607.9,2607.4,1.27715253]
[1748617550209,0.76676,2607.6,2607.5,3.97457]
[1748617550395,0.76676,2607.6,2607.5,3.2078]
[1748617551404,0.76676,2607.6,2607.5,7.2588]
[1748617551604,0.76676,2607.6,2607.5,4.051]
[1748617552501,0.76678,2607.5,2607.4,0.67245253]
[1748617552707,0.76678,2607.5,2607.4,0.00575253]
[1748617552901,8.97458,2607.5,2607.4,2.53e-06]
[1748617553102,0.76705,2606.6,2606.5,3.2078]
[1748617554105,0.76708,2606.5,2606.4,4.05]
[1748617554403,2.11178,2606.5,2606.4,4.05]
[1748617554600,1.3447,2606.5,2606.3,0.00575253]
[1748617554805,0.76711,2606.4,2606.3,0.00575253]
[1748617555210,7.10771,2606.4,2606.3,0.00575253]
[1748617555510,7.10771,2606.4,2606.3,2.53e-06]
[1748617556119,0.76734,2605.6,2605.5,3.2078]
[1748617556607,1.91785,2606.3,2605.5,3.2078]
[1748617556608,2.53377,2606.7,2606.0,0.76722]
[1748617556918,0.76718,2606.2,2606.0,0.76722]
[1748617557106,0.6162,2606.7,2606.2,3.2078]
[1748617557313,0.76712,2606.4,2606.3,4.047]
[1748617557507,0.7671,2606.5,2606.3,4.81413]
[1748617557709,0.7671,2606.5,2606.4,0.76711]
[1748617558013,0.76711,2606.4,2606.3,4.047]
[1748617558608,1.91771,2606.5,2605.9,3.2078]
[1748617558905,0.76723,2606.0,2605.9,3.2078]
[1748617559109,0.76726,2605.9,2605.8,0.00575253]
[1748617559416,2.65766,2605.9,2605.8,0.00575253]
[1748617560312,0.6742,2605.9,2605.8,0.00575253]
[1748617560514,1.2162,2606.3,2605.8,0.00575253]
[1748617560709,1.2162,2606.3,2605.9,0.76725]
[1748617561217,0.76718,2606.2,2605.9,0.76725]
[1748617561417,1.98336,2606.3,2605.8,0.00575253]
[1748617561714,1.98334,2606.3,2606.0,0.76721]
[1748617561914,1.98334,2606.3,2605.9,0.76724]
[1748617562108,0.6742,2606.5,2606.1,3.2078]
[1748617562304,0.6742,2606.5,2606.3,0.76713]
[1748617562615,0.6742,2606.5,2606.2,0.76715]
[1748617562817,0.6742,2606.5,2606.2,1.2355]
[1748617563014,0.6742,2606.5,2606.4,3.97491]
[1748617563311,0.76706,2606.6,2606.4,7.2548]
[1748617563520,0.77270532,2606.8,2606.5,2.00255]
[1748617563830,0.00571532,2606.8,2606.6,0.76705]
[1748617564115,0.00571532,2606.8,2606.7,3.97482]
[1748617564311,0.00571532,2606.8,2606.7,8.02182]
[1748617565113,0.76681,2607.5,2607.1,0.76688]
[1748617565321,0.76685,2607.3,2607.2,5.3591]
[1748617565522,0.76694,2607.0,2606.7,3.2078]
[1748617565818,0.76696,2606.9,2606.8,4.047]
[1748617566015,0.76693,2607.0,2606.8,4.047]
[1748617566319,1.41312,2607.1,2606.8,4.047]
[1748617566521,0.6462,2607.1,2606.8,4.047]
[1748617566720,0.6462,2607.1,2606.9,2.07905]
[1748617566922,0.6462,2607.1,2607.0,0.76693]
[1748617567516,0.00575253,2607.2,2607.0,0.76693]
[1748617567819,0.00575253,2607.2,2606.9,2.07904]
[1748617568015,0.00575253,2607.2,2606.8,4.047]
[1748617568216,0.76694,2607.0,2606.8,4.047]
[1748617568417,2.00691,2607.1,2606.8,4.81398]
[1748617568721,0.76693,2607.0,2606.8,4.047]
[1748617569024,0.76696,2606.9,2606.8,4.047]
[1748617569315,0.00575253,2607.2,2606.9,0.76694]
[1748617569623,0.76691,2607.1,2606.8,6.03287]
[1748617569921,0.00575253,2607.2,2606.8,6.03288]
[1748617570215,0.76692,2607.1,2607.0,3.2078]
[1748617570516,0.00575253,2607.2,2607.0,3.2078]
[1748617570820,0.00575253,2607.2,2607.0,7.2548]
[1748617571019,0.77265253,2607.2,2607.0,7.2548]
[1748617571420,0.7669,2607.1,2607.0,7.2548]
[1748617571917,0.77264253,2607.2,2607.0,3.2078]
[1748617572116,0.7669,2607.1,2607.0,4.4384]
[1748617572317,0.7669,2607.1,2607.0,3.2078]
[1748617572713,0.77263253,2607.2,2607.0,3.97473]
[1748617572915,0.00575253,2607.2,2607.0,3.2078]
[1748617573110,0.00575253,2607.2,2607.1,0.7669]
[1748617573321,0.00575253,2607.2,2607.0,5.32251]
[1748617573716,0.00575253,2607.2,2607.1,0.7669]
[1748617573916,0.77262253,2607.2,2607.0,5.32251]
[1748617574421,0.7669,2607.1,2607.0,4.5556]
[1748617574621,0.00575253,2607.2,2607.0,4.5556]
[1748617574811,0.7669,2607.1,2607.0,3.2078]
[1748617575413,0.76699,2606.8,2606.7,5.3948]
[1748617575709,1.2434,2607.1,2606.7,5.3948]
[1748617575914,0.76698,2606.9,2606.7,5.3948]
[1748617576117,1.2434,2607.1,2606.7,5.3948]
[1748617576311,0.76702,2606.7,2606.6,3.21355253]
[1748617576711,1.9589,2606.8,2606.6,3.21355253]
[1748617576925,1.419,2606.8,2606.6,3.21355253]
[1748617577316,1.41901,2606.8,2606.6,3.21355253]
[1748617577516,0.652,2606.8,2606.6,3.21355253]
[1748617577916,1.41899,2606.8,2606.7,1.2697]
[1748617578224,0.76697,2606.9,2606.7,1.2697]
[1748617578421,3.87618,2607.1,2606.7,1.2697]
[1748617578614,0.76702,2606.7,2606.6,0.00575253]
[1748617579629,2.0739,2606.8,2606.6,0.00575253]
[1748617579826,0.76702,2606.7,2606.6,0.00575253]
[1748617580418,2.0739,2606.8,2606.6,0.00575253]
[1748617580629,0.767,2606.8,2606.6,0.00575253]
[1748617581125,0.76696,2607.0,2606.6,0.00575253]
[1748617581320,5.86793,2607.1,2606.6,0.00575253]
[1748617581528,4.62672,2607.1,2606.6,0.00575253]
[1748617581729,3.8598,2607.1,2606.6,1.25865253]
[1748617582021,0.76703,2606.7,2606.6,0.00575253]
[1748617582520,0.76702,2606.8,2606.6,0.00575253]
[1748617582927,0.76701,2606.8,2606.6,0.00575253]
[1748617583229,0.76703,2606.7,2606.6,0.00575253]
[1748617583426,9.047,2606.7,2606.0,3.2078]
[1748617583625,1.9184,2605.6,2604.9,1.3141]
[1748617583930,3.2078,2605.4,2604.9,1.3141]
[1748617584135,3.2078,2605.4,2604.9,5.3611]
[1748617584423,0.00575253,2605.4,2605.3,0.76741]
[1748617584626,3.2078,2606.0,2605.4,1.91853]
[1748617584927,3.2078,2606.0,2605.6,0.76734]
[1748617585230,0.76728,2605.9,2605.7,6.6716]
[1748617585528,3.97505,2606.0,2605.8,1.2155]
[1748617585718,3.2078,2606.0,2605.8,1.2155]
[1748617586028,0.00575253,2606.1,2606.0,0.76723]
[1748617586722,0.00575253,2606.1,2605.9,0.76725]
[1748617586931,0.00575253,2606.1,2606.0,1.2155]
[1748617587131,3.21355253,2606.1,2606.0,1.2155]
[1748617587630,0.00575253,2606.1,2606.0,1.2155]
[1748617587832,0.00575253,2606.1,2606.0,1.98273]
[1748617588229,0.00575253,2606.1,2606.0,1.2155]
[1748617588632,0.00575253,2606.1,2606.0,6.05473]
[1748617588934,0.00575253,2606.1,2606.0,1.2155]
[1748617589133,0.00575253,2606.1,2606.0,1.98273]
[1748617589731,0.00575253,2606.1,2606.0,1.2155]
[1748617589932,0.77295253,2606.1,2606.0,1.2155]
[1748617590121,1.92377253,2606.1,2605.5,4.072]
[1748617590432,0.76732,2605.8,2605.5,6.05507]
[1748617590627,0.76733,2605.7,2605.5,5.2877]
[1748617590828,1.41741,2605.8,2605.6,0.76735]
[1748617591030,0.6501,2605.8,2605.7,0.76732]
[1748617591233,0.6501,2605.8,2605.5,1.2157]
[1748617591626,1.41741,2605.8,2605.5,1.98307]
[1748617591932,1.41742,2605.8,2605.5,1.98308]
[1748617592126,0.6501,2605.8,2605.2,4.072]
[1748617592429,1.41741,2605.8,2605.5,0.76737]
[1748617592629,0.76733,2605.7,2605.5,0.76737]
[1748617592831,1.41741,2605.8,2605.6,0.76734]
[1748617593026,3.2078,2605.9,2605.7,1.2868]
[1748617593331,0.76729,2605.8,2605.7,1.2868]
[1748617593534,0.76743,2605.4,2605.2,4.072]
[1748617593727,3.97517,2605.6,2605.3,1.2868]
[1748617593934,3.2078,2605.6,2605.5,0.76738]
[1748617594130,3.2078,2605.9,2605.7,0.76732]
[1748617594326,0.76737,2605.6,2605.1,5.75052]
[1748617594528,1.257,2605.8,2605.2,1.91868]
[1748617594729,5.2321,2605.8,2605.6,0.76734]
[1748617594922,5.2321,2605.8,2605.3,1.91861]
[1748617595130,5.2321,2605.8,2605.6,0.76734]
[1748617595438,0.76738,2605.5,2605.4,1.3463]
[1748617595640,3.97518,2605.5,2605.4,1.3463]
[1748617596137,3.2078,2605.5,2605.1,5.46348]
[1748617596338,3.2078,2605.8,2605.4,0.76741]
[1748617596531,3.97509,2605.8,2605.6,0.76733]
[1748617596839,3.2078,2605.8,2605.7,0.76732]
[1748617598234,0.00575253,2606.1,2606.0,0.76723]
[1748617598837,0.00575253,2606.1,2605.8,1.9051]
[1748617599033,0.76724,2606.0,2605.8,2.67237]
[1748617599233,3.97507,2605.9,2605.8,1.259]
[1748617599533,3.97508,2605.9,2605.8,0.76729]
[1748617599737,0.7673,2605.8,2605.5,1.259]
[1748617600034,1.91847,2605.5,2604.7,45.9508]
[1748617600231,0.76751,2605.1,2605.0,1.259]
[1748617600433,3.97529,2605.2,2605.0,1.259]
[1748617600632,3.2078,2605.2,2605.1,0.7675]
[1748617601237,1.2967,2605.4,2605.3,0.76744]
[1748617601539,4.4572,2605.5,2605.0,3.17777]
[1748617601737,0.76741,2605.4,2605.2,0.76745]
[1748617602136,2.06461,2605.4,2605.2,0.76745]
[1748617602632,2.06461,2605.4,2605.0,1.259]
[1748617602633,0.76753,2605.0,2604.9,0.00575253]
[1748617602834,3.97533,2605.0,2604.9,0.00575253]
[1748617603138,3.2078,2605.0,2604.9,0.77331253]
[1748617603441,3.2078,2605.4,2605.1,0.76748]
[1748617603640,0.76747,2605.2,2605.0,0.76751]
[1748617603939,3.2078,2605.1,2605.0,1.98341]
[1748617604343,3.2078,2605.4,2605.0,1.2159]
[1748617604538,3.2078,2605.4,2605.1,1.91876]
[1748617604742,3.2078,2605.4,2605.3,0.76744]
[1748617605439,3.3996,2605.4,2605.3,0.76744]
[1748617607244,3.3996,2605.4,2605.2,1.2159]
[1748617607448,4.16702,2605.4,2605.2,1.98335]
[1748617607844,3.3996,2605.4,2605.2,1.2159]
[1748617608048,3.3996,2605.4,2605.3,0.76744]
[1748617609451,3.3996,2605.4,2605.3,1.43684]
[1748617609738,0.00575253,2606.1,2606.0,0.76724]
[1748617610742,0.00575253,2606.1,2606.0,1.43134]
[1748617610942,3.2078,2606.8,2606.2,1.91794]
[1748617611137,0.6092,2606.9,2606.8,0.767]
[1748617611544,3.2078,2607.1,2607.0,0.76694]
[1748617612136,3.2078,2607.1,2606.8,0.00575253]
[1748617612340,4.4711,2607.1,2606.9,0.76696]
[1748617612947,0.76697,2607.0,2606.8,0.00575253]
[1748617613139,1.2779,2606.9,2606.8,0.77275253]
[1748617614248,6.2779,2606.9,2605.9,1.91812]
[1748617614453,3.97488,2606.6,2606.3,0.76713]
[1748617614649,1.9465,2606.5,2606.4,0.76712]
[1748617615342,0.6686,2606.5,2606.4,0.76712]
[1748617615953,3.2078,2606.6,2606.5,0.76709]
[1748617616157,0.6399,2606.9,2606.8,0.767]
[1748617616652,0.6399,2606.9,2606.5,1.2203]
[1748617616961,3.97485,2606.7,2606.5,0.76708]
[1748617617148,3.2078,2606.7,2606.4,0.76711]
[1748617617449,1.2496,2606.6,2606.4,0.76711]
[1748617617645,1.2496,2606.6,2606.5,0.76709]
[1748617617852,1.2496,2606.6,2606.3,1.2203]
[1748617618245,1.2496,2606.6,2606.5,0.76709]
[1748617619247,3.2078,2606.7,2606.3,1.2203]
[1748617619447,1.2603,2606.9,2606.8,0.76701]
[1748617619752,0.76705,2606.7,2606.5,0.76709]
[1748617619946,1.2661,2606.8,2606.7,0.76704]
[1748617620253,1.2661,2606.8,2606.3,1.884]
[1748617620461,0.76709,2606.6,2606.3,1.2203]
[1748617620745,1.2661,2606.8,2606.3,1.2203]
[1748617621052,0.76705,2606.7,2606.5,0.76708]
[1748617621456,2.03317,2606.6,2606.4,0.7671]
[1748617621654,1.2661,2606.6,2606.5,0.76709]
[1748617622161,2.03316,2606.6,2606.3,1.2203]
[1748617622453,0.76703,2606.8,2606.6,0.76704]
[1748617622653,0.76703,2606.8,2606.3,3.13817]
[1748617622854,1.2607,2606.8,2606.3,1.2203]
[1748617623057,2.02771,2606.8,2606.3,3.13818]
[1748617623258,2.02771,2606.8,2606.6,0.76704]
[1748617623455,2.02771,2606.8,2606.7,0.76703]
[1748617624354,0.76706,2606.7,2606.5,0.76708]
[1748617624548,4.4685,2606.6,2606.2,0.64915253]
[1748617624754,0.76711,2606.5,2606.4,0.76711]
[1748617624957,2.10741,2606.5,2606.4,0.76711]
[1748617625155,3.97488,2606.6,2606.5,0.76709]
[1748617625351,3.2078,2606.6,2606.5,0.76709]
[1748617626253,3.97486,2606.6,2606.4,0.76711]
[1748617626456,5.31517,2606.6,2606.5,0.76709]
[1748617626656,3.2078,2606.6,2606.5,0.76709]
[1748617627963,4.5481,2606.6,2606.5,0.76709]
[1748617629967,4.5481,2606.6,2606.2,0.00575253]
[1748617630161,0.76712,2606.5,2606.2,0.00575253]
[1748617630466,5.12577,2606.3,2605.1,0.3846]
[1748617630762,3.2078,2606.0,2605.5,1.91846]
[1748617631057,3.2078,2606.0,2605.9,0.76727]
[1748617631258,0.6209,2606.2,2606.1,0.76721]
[1748617631463,3.2078,2606.3,2606.2,0.76719]
[1748617631660,3.97497,2606.3,2605.9,1.92393253]
[1748617631859,5.31097,2606.3,2605.9,3.17163253]
[1748617632266,4.5438,2606.3,2606.2,0.76719]
[1748617632458,3.2078,2606.3,2606.2,0.76719]
[1748617632967,1.39936,2606.7,2606.3,1.91788]
[1748617632968,3.8401,2606.7,2606.3,1.91788]
[1748617633167,3.8401,2606.7,2606.6,0.76707]
[1748617633561,0.76707,2606.6,2606.5,0.76708]
[1748617633761,0.76707,2606.6,2606.4,2.01481]
[1748617633957,0.7671,2606.5,2606.0,3.2078]
[1748617634161,3.2078,2606.4,2605.9,4.08375253]
[1748617634358,9.2431,2606.4,2605.9,0.00575253]
[1748617634569,3.2078,2606.1,2605.9,0.77301253]
[1748617634771,3.2078,2606.1,2606.0,0.76724]
[1748617634967,6.0353,2606.4,2606.3,0.76715]
[1748617635861,3.2078,2606.5,2606.4,0.76713]
[1748617637168,3.2078,2606.5,2606.4,2.01873]
[1748617637374,3.2078,2606.8,2606.7,0.76704]
[1748617637565,3.97481,2606.8,2606.7,0.76704]
[1748617637761,3.2078,2606.8,2606.7,0.76704]
[1748617637965,3.2078,2606.8,2606.4,1.2516]
[1748617638270,3.97483,2606.8,2606.6,0.76707]
[1748617638465,4.4232,2606.8,2606.4,1.2516]
[1748617638672,4.4232,2606.8,2606.7,0.76704]
[1748617638865,3.2078,2606.8,2606.7,0.76704]
[1748617639064,6.0635,2606.9,2606.8,0.76701]
[1748617639273,6.0635,2606.9,2606.4,3.16942]
[1748617639481,6.0635,2606.9,2606.7,0.76702]
[1748617639673,0.76701,2606.8,2606.7,0.76702]
[1748617639968,4.42895253,2607.1,2607.0,0.76695]
[1748617639969,3.98048253,2607.1,2607.0,0.76695]
[1748617640166,3.21355253,2607.1,2607.0,0.76695]
[1748617640372,3.98049253,2607.1,2606.9,0.76696]
[1748617640573,3.98049253,2607.1,2607.0,0.76695]
[1748617640873,3.21355253,2607.1,2606.3,2.57789]
[1748617641080,0.76705,2606.7,2606.4,1.256]
[1748617641367,1.91746,2606.9,2606.4,2.02311]
[1748617641563,0.7671,2606.5,2606.4,1.256]
[1748617641772,1.2973,2606.8,2606.5,0.76708]
[1748617641966,0.7671,2606.5,2606.4,1.256]
[1748617642271,0.76708,2606.6,2606.5,0.76709]
[1748617642460,1.41026,2606.7,2606.5,0.76709]
[1748617642768,0.76707,2606.6,2606.5,0.76709]
[1748617642965,0.6432,2606.7,2606.4,1.256]
[1748617643165,0.76722,2606.1,2605.9,0.77300253]
[1748617643374,0.76721,2606.2,2606.1,0.76721]
[1748617643762,0.76721,2606.2,2606.0,1.2324]
[1748617643763,0.76722,2606.1,2606.0,1.2324]
[1748617643958,3.97501,2606.2,2606.0,1.99965]
[1748617644171,3.97501,2606.2,2606.1,0.76722]
[1748617644468,0.76722,2606.1,2606.0,1.2324]
[1748617645566,3.2078,2606.2,2605.9,0.63665253]
[1748617645774,0.76725,2606.0,2605.9,0.63665253]
[1748617646071,0.76725,2606.0,2605.9,0.00575253]
[1748617646673,2.05345,2606.0,2605.9,0.00575253]
[1748617646873,14.18159,2606.0,2604.9,4.6947]
[1748617647175,0.7675,2605.2,2605.1,0.7675]
[1748617647471,0.76752,2605.1,2605.0,1.925]
[1748617647773,0.76752,2605.1,2604.7,0.76761]
[1748617647774,0.76757,2605.0,2604.7,0.76761]
[1748617647968,3.2078,2605.1,2604.6,0.66265253]
[1748617647969,3.21355253,2605.1,2604.6,0.66265253]
[1748617648177,1.2862,2605.0,2604.6,0.66265253]
[1748617648477,0.76756,2605.0,2604.7,1.2681]
[1748617648775,3.21355253,2605.1,2605.0,0.76754]
[1748617649375,3.21355253,2605.1,2604.7,1.2681]
[1748617649775,3.98107253,2605.1,2604.9,0.76755]
[1748617650075,3.98107253,2605.1,2605.0,1.339]
[1748617650267,3.98107253,2605.1,2605.0,2.10654]
[1748617650573,3.98107253,2605.1,2605.0,1.339]
[1748617652374,0.00575253,2605.1,2605.0,2.10654]
[1748617653873,0.77326253,2605.1,2605.0,2.10654]
[1748617654069,0.77326253,2605.1,2605.0,1.339]
[1748617654380,0.76758,2604.9,2604.8,0.76758]
[1748617654574,0.76758,2604.9,2604.8,2.06658]
[1748617655381,3.83405253,2605.1,2604.6,4.72265253]
[1748617655583,0.76756,2605.0,2604.9,0.76756]
[1748617655770,3.83405253,2605.1,2604.7,1.2548]
[1748617655972,4.60158253,2605.1,2605.0,0.76754]
[1748617656170,1.39378253,2605.1,2605.0,0.76754]
[1748617656677,0.76755,2605.0,2604.9,0.76755]
[1748617657475,1.39378253,2605.1,2605.0,0.76754]
[1748617657877,0.00575253,2605.1,2605.0,0.76754]
[1748617658271,1.43496,2605.7,2605.6,0.76737]
[1748617658478,0.76736,2605.7,2605.6,0.76737]
[1748617658789,0.76734,2605.7,2605.6,0.76737]
[1748617659077,5.77519,2606.0,2605.5,1.2532]
[1748617659266,0.00575253,2606.0,2605.8,3.2078]
[1748617659467,0.00575253,2606.0,2605.9,1.2532]
[1748617659468,0.77300253,2606.0,2605.9,1.2532]
[1748617660485,0.77300253,2606.0,2605.9,2.02048]
[1748617660778,0.77300253,2606.0,2605.9,1.2532]
[1748617661087,0.00575253,2606.0,2605.9,7.02048]
[1748617661380,0.00575253,2606.0,2605.9,6.08048]
[1748617663078,0.00575253,2606.0,2605.9,11.08048]
[1748617665784,0.00575253,2606.0,2605.9,6.08048]
[1748617666787,3.2078,2606.7,2606.2,1.91793]
[1748617666984,0.76713,2606.5,2606.4,0.76712]
[1748617667292,3.2078,2606.7,2606.6,0.76708]
[1748617667680,0.04,2606.8,2606.7,0.76705]
[1748617668283,0.04,2606.8,2606.7,4.82705]
[1748617675781,0.04,2606.8,2606.7,4.81605]